{"text_format":"3","workbook":"xlsx","n_sheets":13,"sheets":["开始","基础知识","函数简介","AVERAGE","MIN 和 MAX","日期和时间​​","联接文本和数字","IF 语句","VLOOKUP","条件函数","函数向导","公式错误","了解详细信息"],"not_rendered":{"images":32,"defined_names":21},"read":"whole","date_system":"1900"}

{"sheet":"开始","index":0,"n_rows":4,"n_cols":1,"rows_kept":4}
[]
["公式入门"]
["只需几个步骤，即可在 Excel（世界功能最强大的电子表格应用）中\n构建公式和函数并投入使用。"]
["按 Ctrl+Home 返回页首。若要开始教程，请按 Ctrl+PageDown。"]

{"sheet":"基础知识","index":1,"n_rows":43,"n_cols":10,"rows_kept":43}
["基础知识：使用 Excel 进行数学计算"]
["你可以在 Excel 中进行加、减、乘、除运算，无需使用任何内置函数。只需使用部分基本运算符：+、-、*、/。所有公式均以等号 (=) 开头。\n",null,"要使用的数：",null,"运算：","公式：","运算结果："]
["若要相加，选择单元格 F3，键入 =C3+C4，然后按 Enter。 \n",null,1,null,"加法 (+) ",null,{"$f":"C3+C4","v":3}]
["若要相减，选择单元格 F4，键入 =C3-C4，然后按 Enter。 ",null,2,null,"减法 (-) ",null,{"$f":"C3-C4","v":-1}]
["若要相乘，选择单元格 F5，键入 =C3*C4，然后按 Enter。\n",{"$nulls":3},"乘法 (*) ",null,{"$f":"C3*C4","v":2}]
["若要相除，选择单元格 F6，键入 =C3/C4，然后按 Enter。\n",{"$nulls":3},"除法 (/) ",null,{"$f":"C3/C4","v":0.5}]
["看看这个：更改单元格 C3 和 C4 中的数字，并观看公式结果自动更改。",{"$nulls":3},"幂 (^) ",null,{"$f":"C3^C4","v":1}]
["延伸知识：可以使用脱字符 (^) 对值进行幂运算，例如 =A1^A2。使用 Shift+6 输入该符号。在单元格 F7 中，输入 =C3^C4。"]
["向下滚动查看更多详细信息"]
["下一步"]
["有关公式、单元格和区域的详细信息"]
["Excel 由组成行和列的单个单元格构成。行采用数字编号，列采用字母标明。共有一百多万行和 16,000 多列，可将公式放入其中任何位置。 \n"]
["公式可包含单元格引用、单元格引用范围、运算符和常数。以下均为公式的示例：\n\n=A1+B1\n=10+20\n=SUM(A1:A10)\n\n"]
["你会注意到，上面的第三个示例中使用了 SUM 函数。函数是预先构建的命令，可采用一个值或多个值，以特定方式进行计算并返回结果。例如，SUM 函数采用单元格引用或指定区域，并对它们求和。在此示例中，它使用单元格 A1 到 A10，并对它们求和。Excel 拥有 400 多个函数，你可以在“公式”选项卡上进行浏览。\n"]
["带有函数的公式以等号开头，随后是函数名称，后接用括号括起来的参数（函数用于计算的值）。 \n"]
["按 Enter 即可确认公式。执行该操作后，公式将进行计算，结果将显示在单元格中。若要查看公式本身，可查看功能区下方的编辑栏，或按 F2 进入“编辑”模式，你将在单元格中看到公式。再次按 Enter 完成公式并计算结果。\n\n"]
["部分公式说明"]
["=10+20 是一个公式，其中 10 和 20 是常数，而 + 符号是运算符。"]
["=SUM(A1:A10) 是一个公式，其中 SUM 是函数名称，左括号和右括号包含公式参数，A1:A10 是该函数的单元格区域。"]
["=SUM(A1:A10,C1:C10) 是一个公式，其中 SUM 是函数名称，左括号和右括号包含公式参数，A1:A10、C1:C10 是该函数的单元格区域，由逗号分隔。"]
["扩展知识：常数是在单元格或公式中输入的值。虽然 =10+20 计算结果可能与 =A1+B1 相同，但常数不是一个好方法。为什么呢？因为在不选择单元格并进行查找的情况下，无法轻松查看常数。稍后更改可能有难度。将常数放入单元格简单得多，你可轻松在其中进行调整，并在公式中进行引用。\n\n例如：选择下方值为 12 的黄色单元格。你将看到我们对一个区域的单元格使用 SUM 函数。我们未直接在公式中键入“4”或“8”。 \n"]
["上一个工作表"]
["下一个工作表"]
["访问网页获取详细信息"]
["使用 Excel 作为计算器"]
["Excel 中的公式概述"]
["Excel 函数（按类别划分） "]
["Excel 函数（按字母顺序排列） "]
["免费 Excel 在线培训"]
{"$rows_empty":10}
[{"$nulls":9},"值"]
[{"$nulls":9},4]
[{"$nulls":9},8]
[{"$nulls":9},{"$f":"SUM(J41:J42)","v":12}]

{"sheet":"函数简介","index":2,"n_rows":51,"n_cols":7,"rows_kept":51}
["函数简介"]
["函数可为你提供执行各种任务的功能，如进行数学运算、查找值或者计算日期和时间。让我们使用 SUM 函数，通过几种方法对值进行相加。",null,"水果","数量",null,"肉类","数量"]
["在水果数量列（单元格 D7）下，输入 =SUM(D3:D6) 或键入 =SUM(，然后用鼠标选择区域并按 Enter。这将对单元格 D3、D4、D5 和 D6 中的值进行求和。运算结果应为 170。\n",null,"苹果",50,null,"牛肉",50]
["现在，让我们尝试自动求和。选择肉类列下的单元格（单元格 G7），然后转到“公式”>“自动求和”>选择“求和”。将看到 Excel 自动为你输入公式。按 Enter 进行确认。自动求和功能包含所有最常用的函数。\n",null,"橙子",20,null,"鸡肉",30]
["下面是简便的键盘快捷方式。选择单元格 D15 并按 Alt =，然后按 Enter。这将为你自动输入 SUM。",null,"香蕉",60,null,"猪肉",10]
["向下滚动查看更多详细信息",null,"柠檬",40,null,"鱼肉",50]
["延伸知识\n请使用任何尝试过的方法试用 COUNT 函数。COUNT 函数可对包含数字的单元格区域进行计数。",null,"SUM > ",{"$f":"SUM(D3:D6)","v":170},null,"SUM > "]
["下一步"]
["有关函数的详细信息",null,"物品","数量",null,"物品","数量"]
["转到“公式”选项卡并浏览函数库，其中函数按类别列出，如文本、日期和时间等。使用“插入函数”可按名称搜索函数，并启动可助你生成公式的向导。\n\n如果在按 = 后开始键入函数，Excel 将启动 Intellisense，列出以键入字母开头的所有函数。找到所需函数后，请按 Tab，Excel 将自动完成函数名称并为你输入左括号。此外还将显示可选和必需参数。\n\n\n\n现在我们来看一下几个函数的解析。SUM 函数的结构如下所示：",null,"面包",50,null,"面包",50]
["如果对 SUM 函数进行解释，应会是：返回单元格 D35 到 D38 中的所有值以及 H 列的所有值的总和。SUM 是函数名称，D35:D38 是几乎始终需要的第一个区域参数，而 H:H 是第二个区域参数，用逗号分隔。现在，我们来试用一个不需要任何参数的函数。\n",null,"甜甜圈",100,null,"甜甜圈",100]
["TODAY 函数可返回当前日期。它会在 Excel 重新计算时自动更新。",null,"曲奇饼",40,null,"曲奇饼",40]
["看看这个\n选择这些单元格。然后在 Excel 窗口的右下角，底部栏中可找到 SUM：170。该栏称为“状态栏”，它是快速查找选定单元格或区域的总和与其他详细信息的另一种方式。 ",null,"蛋糕",50,null,"蛋糕",50]
["重要详细信息\n双击此单元格。你会注意到最后那个 100。虽然可以像这样将数字放在公式中，但除非绝对必要，否则我们不推荐这么做。这被称为常量，很容易忘记它的存在。我们建议改为引用另一个单元格，如单元格 F51。这样就可以容易地看到，而不是隐藏在公式中。 ",null,"馅饼",20,null,"馅饼",20]
["访问网页获取详细信息",null,"SUM > ",null,null,"COUNT >"]
["有关 SUM 函数的全部内容"]
["使用自动求和对数字进行求和"]
["有关 COUNT 函数的全部内容"]
["免费 Excel 在线培训"]
["返回页首"]
["下一步"]
{"$rows_empty":12}
[null,null,"水果","数量"]
[null,null,"苹果",50]
[null,null,"橙子",20]
[null,null,"香蕉",60]
[null,null,"柠檬",40]
[null,null,"SUM > ",{"$f":"SUM(D35:D38)","v":170}]
[]
[]
[]
[]
[null,null,"物品","数量"]
[null,null,"汽车",20]
[null,null,"卡车",10]
[null,null,"自行车",10]
[null,null,"滑板",40]
[]
[{"$nulls":3},"总计:",null,"其他值：","新的总计"]
[{"$nulls":3},{"$f":"SUM(D45:D48,100)","v":180},null,100,{"$f":"SUM(D45:D48,F51)","v":180}]

{"sheet":"AVERAGE","index":3,"n_rows":15,"n_cols":7,"rows_kept":15}
["AVERAGE 函数"]
["使用 AVERAGE 函数，可获取某区域单元格中数字的平均值。",null,"水果","数量",null,"肉类","数量"]
["选择单元格 D7，然后使用“自动求和”添加 AVERAGE 函数。",null,"苹果",50,null,"牛肉",50]
["现在，选择单元格 G7，然后通过键入 =AVERAGE(G3:G6) 输入 AVERAGE 函数。 ",null,"橙子",20,null,"鸡肉",30]
["在单元格 D15 中，可以使用“自动求和”，或键入来输入另一个 AVERAGE 函数。 ",null,"香蕉",60,null,"猪肉",10]
["看看这个\n选择任意范围内的数字，然后查看状态栏获取即时平均值。\n",null,"柠檬",40,null,"鱼肉",50]
["激活上一个工作表",null,"AVERAGE >",null,null,"AVERAGE >"]
["转到下一个工作表"]
["延伸知识\n尝试在此处使用 MEDIAN 或 MODE。\n\nMEDIAN 为你提供数据集的中间值，而\nMODE 为你提供最常出现的值。\n",null,"物品","数量",null,"物品","数量"]
["访问链接，从网页上了解详细信息",null,"面包",50,null,"面包",50]
["选择此处，从网页上了解有关 AVERAGE 函数的全部内容",null,"甜甜圈",100,null,"甜甜圈",100]
["选择此处，从网页上了解有关 MEDIAN 函数的全部内容",null,"曲奇饼",40,null,"曲奇饼",40]
["选择此处，从网页上了解有关 MODE 函数的全部内容",null,"蛋糕",50,null,"蛋糕",50]
["选择此处，从网页上了解免费 Excel 培训",null,"馅饼",20,null,"馅饼",20]
[null,null,"AVERAGE >"]

{"sheet":"MIN 和 MAX","index":4,"n_rows":15,"n_cols":7,"rows_kept":15}
["MIN 和 MAX 函数"]
["使用 MIN 函数获取单元格区域内的最小数字。",null,"水果","数量",null,"肉类","数量"]
["使用 MAX 函数获取单元格区域内的最大数字。",null,"苹果",50,null,"牛肉",50]
["选择单元格 D7，然后使用“自动求和”向导添加 MIN 函数。\n",null,"橙子",20,null,"鸡肉",30]
["现在，选择单元格 G7，然后通过键入 =MAX(G3:G6) 输入 MAX 函数。\n",null,"香蕉",60,null,"猪肉",10]
["在单元格 D15 中，可以使用自动求和向导或键入来输入 MIN 或 MAX 函数。 \n",null,"柠檬",40,null,"鱼肉",50]
["访问网页获取详细信息\n",null,"MIN >",null,null,"MAX >"]
["有关 MIN 函数的全部内容"]
["有关 MAX 函数的全部内容",null,"物品","数量",null,"物品","数量"]
["免费 Excel 在线培训",null,"面包",50,null,"面包",50]
["扩展知识\n可以对多个区域或值使用 MIN 或 MAX，以显示比这些值大或小的值，例如 =MIN(A1:A10,B1:B10) 或 =MAX(A1:A10,B1)，其中 B1 包含一个阈值（如 10），在这种情况下，公式不会返回小于 10 的结果。\n",null,"甜甜圈",100,null,"甜甜圈",100]
[null,null,"曲奇饼",40,null,"曲奇饼",40]
[null,null,"蛋糕",50,null,"蛋糕",50]
[null,null,"馅饼",20,null,"馅饼",20]
[null,null,"MIN 或 MAX >",{"$nulls":3},{"$f":"MIN(G10:G14,10)","v":10}]

{"sheet":"日期和时间​​","index":5,"n_rows":47,"n_cols":6,"rows_kept":47,"merged":[[4,2,4,3],[26,2,26,3],[30,2,30,3],[44,2,44,3]]}
["日期​​函数"]
["Excel 可根据计算机的区域设置提供当前日期。还可以加减日期。"]
["尝试使用 TODAY 函数，它可向你提供当前日期。这些是实时或可变函数，所以明天打开你的工作簿时，它将显示明天的日期。在单元格 D6 中输入 =TODAY()。 \n"]
["日期相减 - 在单元格 D7 中以\"YYYY年M月D日\"格式输入下一个生日，并在单元格 D8 中使用 =D7-D6 查看 Excel 告诉你距此日期还剩多少天。\n"]
["日期相加 - 假设你想要知道帐单截止日期，或需要何时归还图书馆的书籍。可以对日期加上若干天进行确定。在单元格 D10 中，输入随机天数。在单元格 D11 中，我们添加 =D6+D10 以从今天开始计算到期日期。\n",null,"日期​​函数"]
["扩展知识\nExcel 根据从 1900 年 1 月 1 日开始的天数来记录日期和时间。时间以分钟为单位记录在一天的小数部分里。因此 2017/01/01 中午 12:30 实际存储为 42736.5208。如果时间或日期显示为类似的数字，可按“Ctrl+1”>“数字”>选择“日期”或“时间”格式。 ",null,"当前日期：",null,null,{"$f":"IF(D6=TODAY(),\"明白了!\",\"\")","v":""}]
["重要详细信息\n如果不希望 Excel 显示负数，因为尚未输入你的生日，可以使用 IF 函数，如下所示：=IF(D7=\"\",\"\",D7-D6)，表示“如果 D7 无任何内容，则不显示任何内容，否则显示 D7-D6”。\n",null,"出生日期："]
["时间​​函数",null,"距生日天数：",{"$f":"D7-D6","v":0}]
["Excel 可根据计算机的区域设置提供当前时间。还可以加减时间。例如，你可能需要记录某个员工每周的工作小时数，并计算其薪酬和加班费用。\n"]
["在单元格 D28 中，输入 =NOW()，这将提供当前时间，并在每次 Excel 计算时进行更新。如果需要更改时间格式，可以转到“Ctrl+1”>“数字”>“时间”> 选择所需格式。\n",null,"宽限天数："]
["将时间之间的小时数相加 - 在单元格 D36 中输入 =((D35-D32)-(D34-D33))*24，计算某人的上下班时间，然后减去午餐所花的时间。公式末尾的 *24 可将 Excel 显示的天的小数部分转换为小时。但你需要将单元格格式设置为“数值”。若要执行该操作，请转到“开始”>“格式”>“单元格(Ctrl+1)”>“数字”>“数值”>“小数位数: 2”。\n\n",null,"帐单截止日期：",{"$f":"D6+D10","v":"00:00:00"}]
["如果对此公式进行解释，应会是：“用下班时间减去上班时间，然后减去午餐外出/返回时间，然后乘以 24，将 Excel 的小数时间转换为小时”，或 =((下班时间- 上班时间)-(午餐返回时间 - 午餐外出时间))*24。"]
["上一个工作表"]
["下一个工作表"]
["访问网页获取详细信息"]
["有关 TODAY 函数的全部内容"]
["有关 NOW 函数的全部内容"]
["有关 DATE 函数的全部内容"]
["免费 Excel 在线培训"]
{"$rows_empty":7}
[null,null,"时间​​函数"]
[null,null,"当前时间："]
[]
[]
[null,null,"每日工作时数"]
[null,null,"上班时间：","08:00:00"]
[null,null,"午餐外出时间：","12:00:00"]
[null,null,"午餐返回时间：","13:00:00"]
[null,null,"下班时间：","17:00:00"]
[null,null,"总工时：",{"$f":"((D35-D32)-(D34-D33))*24","v":8.000000000000002}]
{"$rows_empty":8}
[null,null,"静态日期和时间"]
[null,null,"日期：","2017-09-27"]
[null,null,"时间：","08:52:00"]

{"sheet":"联接文本和数字","index":6,"n_rows":37,"n_cols":6,"rows_kept":37,"merged":[[26,2,26,3],[30,2,30,3],[34,2,34,3]]}
["联接不同单元格中的文本"]
["有很多时候，需要在 Excel 中联接位于不同单元格的文本。此示例很常见，比如名字和姓氏，希望将其合并为名字、姓氏或完整名字。所幸，Excel 允许我们使用与号 (&) 执行该操作，使用 Shift+7 即可输入。\n",null,"名字","姓氏","姓氏，名字","完整姓名"]
["在单元格 E3 中，输入 =D3&C3 以联接姓氏和名字。 \n",null,"Nancy","Smith",{"$f":"D3&\", \"&C3","v":"Smith, Nancy"},{"$f":"C3&\" \"&D3","v":"Nancy Smith"}]
["但 SmithNancy 看起来并不正确。我们需要添加一个逗号和一个空格。为此，我们要使用引号新建文本字符串。这一次，输入 =D3&\", \"&C3。&\", \"& 部分允许我们将逗号和空格与单元格中的文本进行联接。\n",null,"Andy","North"]
["为了创建完整的名字，我们先使用空格（但不带逗号）联接名字和姓氏。在 F3 中，输入 =C3&\" \"&D3。\n",null,"Jan","Kotas"]
["向下滚动查看更多详细信息",null,"Mariya","Jones"]
["下一个工作表",null,"Steven","Thorpe"]
["结合使用文本和数字",null,"Michael","Neipper"]
["现在我们将使用 & 联接文本和数字，而不仅仅是文本和文本\n\n请看单元格 C28:D29。看看日期和时间如何显示在单独的单元格中？可以如单元格 C32:C33 中所示，使用 & 符号将其联接起来，但看起来并不正确，对吗？遗憾的是，Excel 不知道你所需的数字格式，因此将其分解为最基本的格式，在此示例中为序列日期。我们需要显式指示 Excel 如何设置公式数字部分的格式，以便以所需方式在结果文本字符串中显示。可以使用 TEXT 函数和格式代码实现此操作。",null,"Robert","Zare"]
["在单元格 C36 中，输入 =C28&\" \"&TEXT(D28,\"YYYY年M月D日\")。YYYY年M月D日是年/月/日的中文格式代码，如 2017年09月25日。\n",null,"Yvonne","McKay"]
["在单元格 C37 中，输入 =C29&\" \"&TEXT(D29,\"H:MM\")。H:MM 是上午或下午小时:分钟的中文格式代码，如 1:30。\n\n"]
["看看这个\n公式，尤其是较长的公式，有时可能难以阅读，但可以使用空格将其分解为如下所示的几部分：\n\n=C28 & \" \" & TEXT(D28,\"YYYY年M月D日\")"]
["值得一读\n如果不知道使用什么格式代码，可以使用“Ctrl+1”>“数字”，以所需方式设置任何单元格的格式。然后选择“自定义”选项。可以将显示的格式代码复制回公式中。"]
["访问网页获取详细信息"]
["有关 TEXT 函数的全部内容"]
["合并文本和数字"]
["免费 Excel 在线培训"]
{"$rows_empty":9}
[null,null,"使用文本和数字"]
[null,null,"当前日期：",{"$f":"TODAY()","v":"2019-10-10"}]
[null,null,"当前时间：",{"$f":"NOW()","v":43748.42069039352}]
[]
[null,null,"联接文本和数字"]
[null,null,{"$f":"C28&\" \"&D28","v":"当前日期： 43748"}]
[null,null,{"$f":"C29&\" \"&D29","v":"当前时间： 43748.4206903935"}]
[]
[null,null,"设置文本和数字格式"]
[null,null,{"$f":"C28 &\" \"& TEXT(D28,\"YYYY年M月D日\")","v":"当前日期： 2019年10月10日"}]
[null,null,{"$f":"C29&\" \"&TEXT(D29,\"H:MM\")","v":"当前时间： 10:05"}]

{"sheet":"IF 语句","index":7,"n_rows":37,"n_cols":6,"rows_kept":37,"merged":[[7,2,7,3]]}
["IF 语句"]
["通过 IF 语句，可以在条件之间进行逻辑比较。IF 语句通常指示某条件为 true 时执行某项操作，否则执行其他操作。公式可以返回文本、值或者更多计算。"]
["在单元格 D9 中输入 =IF(C9=\"苹果\",TRUE,FALSE)。正确答案为 TRUE。 \n"]
["将 D9 复制到 D10。此处显示的答案应为 FALSE，因为橙子不是苹果。\n"]
["请通过查看单元格 D12 中的公式来尝试另一示例。首先输入 =IF(C12<100,\"小于 100\",\"大于或等于 100\")。如果在单元格 C12 中输入大于或等于 100 的数字， 会怎样？"]
["重要详细信息\nTRUE 和 FALSE 与 Excel 公式中的其他词不同，因为它们无需用引号括起来，并且 Excel 会自动将其设为大写。数字也无需用引号括起来。常规文本，如 是 或 否 等词需用引号括起来，如下所示： \n=IF(C9=\"苹果\",\"是\",\"否\")"]
["向下滚动查看更多详细信息"]
["下一个工作表",null,"IF 语句"]
["IF 语句与其他函数配合使用",null,"苹果"]
["IF 语句可在满足特定条件时强制执行其他计算。下面我们将对单元格求值，确定是否应收取销售税，并在条件为 true 时计算该费用。\n",null,"橙子"]
["在单元格 F33 中，输入 =IF(E33=\"是\",F31*SalesTax,0)，其中将销售税设置为值为 0.0825 的命名区域。我们的公式表示如果单元格 E33 等于“是”，则将单元格 F31 乘以销售税，否则返回 0。\n\n尝试将单元格 E33 中的 是 改为 否，查看计算更改。"]
["接下来我们添加 IF 语句，计算是否需要运费。在单元格 F35 中，你将看到 IF(E35=\"Yes\",SUM(D28:D29)*1.25,0)。这表示“如果单元格 E35 为 Yes，则计算上述表格中”数量“列的总和，并将其乘以 1.25，否则返回 0”。\n",null,50,{"$f":"IF(C12<100,\"小于 100\",\"大于或等于 100\")","v":"小于 100"}]
["接下来，将单元格 F35 公式中的 1.25 改为“运费”。开始键入时，Excel 的自动更正功能将为你找到该内容。找到后，按 Tab 键进入。这是一个命名区域，我们可从“公式”>“定义名称”进入。现在，如果需要更改运输费用，只需在一处进行操作，便可在工作簿的任意位置使用“运费”名称。\n\n"]
["扩展知识\n创建公式时，Excel 会将公式引用的任何区域四周设为彩色边框，公式中的对应区域也会显示相同的颜色。如果选择单元格 F33 并按 F2 编辑公式，则可以看到此内容。"]
["专家提示\n命名区域使你可以定义某一位置的术语或值，然后将它们重复用于整个工作簿。通过转到“公式”>“名称管理器”，你可以查看此工作簿中的所有命名区域。单击此处了解详细信息。\n"]
["上一个工作表"]
["下一个工作表"]
["访问网页获取详细信息"]
["有关 IF 函数的全部内容"]
["有关 IFS 函数的全部内容"]
["高级 IF 语句"]
["免费 Excel 在线培训"]
[]
[]
[]
[]
[null,null,"物品","数量","成本","总计"]
[null,null,"小部件",2,{"v":9.760711585683554,"d":"¥9.76"},{"$f":"'IF 语句'!$E$28:$E$29*'IF 语句'!$D$28:$D$29","v":{"v":19.521423171367108,"d":"¥19.52"}}]
[null,null,"小装置",3,{"v":3.4189202461080024,"d":"¥3.42"},{"v":10.256760738324008,"d":"¥10.26"}]
[]
[{"$nulls":3},"小计",{"$f":"SUM('IF 语句'!$E$28:$E$29)","v":{"v":13.179631831791557,"d":"¥13.18"}},{"$f":"SUM('IF 语句'!F28:F29)","v":{"v":29.778183909691116,"d":"¥29.78"}}]
[]
[{"$nulls":3},"销售税？","是",{"$f":"IF(E33=\"是\",F31*销售税,0)","v":{"v":2.456700172549517,"d":"¥2.46"}}]
[]
[{"$nulls":3},"运费？","是",{"$f":"IF(E35=\"是\",SUM(D28:D29)*1.25,0)","v":{"v":6.25,"d":"¥6.25"}}]
[]
[{"$nulls":3},"总计",null,{"$f":"SUM(F33,F31,F35)","v":{"v":38.48488408224063,"d":"¥38.48"}}]

{"sheet":"VLOOKUP","index":8,"n_rows":43,"n_cols":7,"rows_kept":43}
["VLOOKUP"]
["VLOOKUP 是 Excel 中使用最广泛的函数之一（也是我们最喜欢的工具之一！）。使用 VLOOKUP，你可查找左侧列中的值，如果找到匹配项，则会在右侧的另一列中返回信息。VLOOKUP 表示：\n"]
["=VLOOKUP(A1,B:C,2,FALSE)"]
["想查找什么内容？"]
["如果找到，你希望右侧多少列得到一个值？"]
["想在何处查找它？"]
["是否想要一个确切的或近似的匹配项？"]
["在单元格 D22 中，输入 =VLOOKUP(C22,C17:D20,2,FALSE)。苹果的正确答案为 50。VLOOKUP 查找苹果找到了匹配项，并在右侧的一列中返回数量。\n\n"]
["现在，请自行在肉类部分的单元格 G22 中进行尝试。最终应为 =VLOOKUP(F22,F17:G20,2,FALSE)。\n\n"]
["实验\n请尝试从下拉列表中选择不同项目。你会看到结果单元格立即自行更新为新值。"]
["向下滚动查看更多详细信息"]
["下一个工作表"]
["VLOOKUP 和 #N/A"]
["无一例外，你会遇到 VLOOKUP 找不到所需内容，并且返回错误 (#N/A) 的情况。有时是单纯的因为查找值不存在，或者因为引用单元格尚无任何值。\n"]
["如果你知道查找值存在，但查找单元格为空，你希望隐藏错误，可以使用 IF 语句。在这种情况下，我们将如单元格 D43 所示嵌套现有 VLOOKUP 公式：\n\n=IF(C43=\"\",\"\",VLOOKUP(C43,C37:D41,2,FALSE))\n\n这表示如果单元格 C43 没有任何内容 (\"\")，则不返回任何结果，否则返回 VLOOKUP 的结果。请注意公式末尾的第二个右括号。这可关闭 IF 语句。\n"]
["如果不确定查找值是否存在，但仍想抑制 #N/A 错误，可以在单元格 G43 中使用名为 IFERROR 的错误处理函数：=IFERROR(VLOOKUP(F43,F37:G41,2,FALSE),\"\")。IFERROR 表示，如果 VLOOKUP 返回有效结果，则显示该结果，否则不显示任何内容 (\"\")。此处我们没有显示任何内容 (\"\")，但还可以使用数字（0、1、2 等）或文本，如“公式不正确”。\n",null,"水果","数量",null,"肉类","数量"]
["重要详细信息\nIFERROR 被称为综合错误处理程序，这意味着它将抑制公式可能引发的任何错误。如果 Excel 通知你公式有需要修复的合法错误，这可能导致问题。\n\n经验法则是不要将错误处理程序添加到公式中，除非确定它们能工作正常。",null,"苹果",50,null,"牛肉",50]
["上一个工作表",null,"橙子",20,null,"鸡肉",30]
["下一个工作表",null,"香蕉",60,null,"猪肉",10]
["访问网页获取详细信息",null,"柠檬",40,null,"鱼肉",50]
["有关 VLOOKUP 函数的全部内容"]
["有关 INDEX/MATCH 函数的全部内容",null,"苹果",null,null,"猪肉"]
["有关 IFERROR 函数的全部内容"]
["使用数据透视表分析工作表数据"]
["免费 Excel 在线培训"]
{"$rows_empty":9}
[null,null,"如果对单元格 D42 中的 SUM 函数进行解释，应会是：对单元格 D38、D39、D40 和 D41 中的值求和。"]
[null,null,"物品","数量",null,"物品","数量"]
[null,null,"面包",50,null,"面包",50]
[null,null,"甜甜圈",100,null,"甜甜圈",100]
[null,null,"曲奇饼",40,null,"曲奇饼",40]
[null,null,"蛋糕",50,null,"蛋糕",50]
[null,null,"馅饼",20,null,"馅饼",20]
[]
[{"$nulls":3},{"$f":"VLOOKUP(C43,C37:D41,2,FALSE)","v":{"$error":"#N/A"}},null,"油酥糕点",{"$f":"IFERROR(VLOOKUP(F43,F37:G41,2,FALSE),\"\")","v":""}]

{"sheet":"条件函数","index":9,"n_rows":123,"n_cols":34,"rows_kept":123}
["条件函数 - SUMIF"]
["使用条件函数，你可以根据给定条件或指定的条件对某区域内进行求和、求平均值、计数或获取最小值或最大值。例如，在列表的所有水果中，苹果有多少？或者有多少橙子属于佛罗里达类型？",null,"水果","数量",null,"水果","类型","数量",{"$nulls":17},"水果",null,"苹果",null,"橙子",null,"香蕉",null,"柠檬"]
["使用 SUMIF，你可以根据在另一区域寻找的特定条件对某一区域求和，例如有多少苹果。选择单元格 D17 并键入 =SUMIF(C3:C14,C17,D3:D14)。SUMIF 的结构如下所示：",null,"苹果",50,null,"苹果","富士",50,{"$nulls":17},"苹果",null,"富士",null,"佛罗里达",null,"卡文迪什",null,"粗皮"]
[{"$f":"SUMIF(C3:C14,C17,D3:D14)","v":150},null,"橙子",20,null,"橙子","佛罗里达",20,{"$nulls":17},"橙子",null,"蜜脆",null,"脐橙",null,"美人指",null,"尤力克"]
["想查看哪个区域？",null,"香蕉",60,null,"香蕉","卡文迪什",60,{"$nulls":17},"香蕉"]
["想查找什么值（文本还是数字）？",null,"柠檬",40,null,"柠檬","粗皮",40,{"$nulls":17},"柠檬"]
["对于找到的每个匹配项，你要对哪个区域求和？",null,"苹果",50,null,"苹果","蜜脆",50]
["SUMIFS 与 SUMIF 相同，但它允许你使用多个条件。因此在此示例中，可查找水果和类型，而不仅仅是按水果排序。选择单元格 H17 并键入 =SUMIFS(H3:H14,F3:F14,F17,G3:G14,G17)。SUMIFS 的结构如下所示：\n",null,"橙子",20,null,"橙子","脐橙",20]
["=SUMIFS(H3:H14,F3:F14,F17,G3:G14,G17)",null,"香蕉",60,null,"香蕉","美人指",60]
["想对哪个区域求和？",null,"柠檬",40,null,"柠檬","尤力克",40]
["这是为匹配项查找的第一个范围",null,"苹果",50,null,"苹果","蜜脆",50]
["这是第一个匹配项的条件",null,"橙子",20,null,"橙子","脐橙",20]
["这是为匹配项查找的第二个范围",null,"香蕉",60,null,"香蕉","卡文迪什",60]
["这是第二个匹配项的条件",null,"柠檬",40,null,"柠檬","尤力克",40]
["专家提示\n每种水果和类型单元格都有一个下拉列表，可在其中选择不同的水果。试一试，并观看公式自动更新。"]
["向下滚动查看更多详细信息",null,"水果","SUMIF",null,"水果","类型","SUMIFS"]
["下一步",null,"苹果",null,null,"橙子","佛罗里达"]
["条件函数 - COUNTIF"]
["使用 COUNTIF 和 COUNTIFS，你可以根据指定的条件对某区域的值进行计数。它们与其他 IF 和 IFS 函数稍有不同，它们只有条件区域和条件。它们不对区域进行求值，然后查找另一个区域进行汇总。"]
["选择单元格 D64 并键入 =COUNTIF(C50:C61,C64)。COUNTIF 的结构如下所示："]
["=COUNTIF(C50:C61,C64)"]
["想查看哪个区域？"]
["想查找什么值（文本还是数字）？"]
["COUNTIFS 与 SUMIF 相同，但它允许你使用多个条件。因此在此示例中，可查找水果和类型，而不仅仅是按水果排序。选择单元格 H64 并键入 =COUNTIFS(F50:F61,F64,G50:G61,G64)。COUNTIFS 的结构如下所示：\n"]
["=COUNTIFS(F50:F61,F64,G50:G61,G64)"]
["这是进行计数的第一个范围"]
["这是第一个匹配项的条件"]
["这是进行计数的第二个范围"]
["这是第二个匹配项的条件"]
["向下滚动查看更多详细信息"]
["下一个工作表"]
["更多条件函数"]
["你已了解 SUMIF、SUMIFS、COUNTIF 和 COUNTIFS。现在可自行尝试其他函数，例如 AVERAGEIF/S、MAXIFS、MINIFS。它们均以相同的方式构造，因此编写好一个公式以后，只需将函数名称替换为所需名称即可。我们已编写单元格 E106 所需的所有函数，因此你可复制/粘贴它们，或者自行尝试键入进行练习。\n\nSUMIF\t=SUMIF(C92:C103,C106,E92:E103)\nSUMIFS\t=SUMIFS(E92:E103,C92:C103,C106,D92:D103,D106)\nAVERAGEIF\t=AVERAGEIF(C92:C103,C106,E92:E103)\nAVERAGEIFS\t=AVERAGEIFS(E92:E103,C92:C103,C106,D92:D103,D106)\nCOUNTIF\t=COUNTIF(C92:C103,C106)\nCOUNTIFS\t=COUNTIFS(C92:C103,C106,D92:D103,D106)\nMAXIFS\t=MAXIFS(E92:E103,C92:C103,C106,D92:D103,D106)\nMINIFS\t=MINIFS(E92:E103,C92:C103,C106,D92:D103,D106)\n"]
["向下滚动查看更多详细信息"]
["下一个工作表"]
["具有值参数的 SUMIF"]
["下面的 SUMIF 函数示例使用大于符号 (>) 查找大于给定值的所有值："]
[{"$f":"SUMIF(D118:D122,\">=50\")","v":200}]
["根据此条件来对一些值求和："]
["...遍历查找这些单元格...\n "]
["...如果值大于 50，则求和。\n "]
["注意：如果需要使用大量条件公式，那么数据透视表是一种更好的解决方案。请参阅此数据透视表文章，了解详细信息。"]
["访问网页获取详细信息"]
["有关 SUMIF 函数的全部内容"]
["有关 SUMIFS 函数的全部内容"]
["有关 COUNTIF 函数的全部内容"]
["有关 COUNTIFS 函数的全部内容"]
["有关 AVERAGEIF 函数的全部内容"]
["有关 AVERAGEIFS 函数的全部内容",null,"水果","数量",null,"水果","类型","数量"]
["有关 MINIFS 函数的全部内容",null,"苹果",50,null,"苹果","富士",50]
["有关 MAXIFS 函数的全部内容",null,"橙子",20,null,"橙子","佛罗里达",20]
["创建下拉列表",null,"香蕉",60,null,"香蕉","卡文迪什",60]
["免费 Excel 在线培训",null,"柠檬",40,null,"柠檬","粗皮",40]
["返回页首",null,"苹果",50,null,"苹果","蜜脆",50]
["下一个工作表",null,"橙子",20,null,"橙子","脐橙",20]
[null,null,"香蕉",60,null,"香蕉","美人指",60]
[null,null,"柠檬",40,null,"柠檬","尤力克",40]
[null,null,"苹果",50,null,"苹果","蜜脆",50]
[null,null,"橙子",20,null,"橙子","脐橙",20]
[null,null,"香蕉",60,null,"香蕉","卡文迪什",60]
[null,null,"柠檬",40,null,"柠檬","尤力克",40]
[]
[null,null,"水果","COUNTIF",null,"水果","类型","COUNTIFS"]
[null,null,"苹果",{"$f":"COUNTIF(C50:C61,C64)","v":3},null,"橙子","佛罗里达",{"$f":"COUNTIFS(F50:F61,F64,G50:G61,G64)","v":1}]
{"$rows_empty":26}
[null,null,"水果","类型","数量"]
[null,null,"苹果","富士",50]
[null,null,"橙子","佛罗里达",20]
[null,null,"香蕉","卡文迪什",60]
[null,null,"柠檬","粗皮",40]
[null,null,"苹果","蜜脆",50]
[null,null,"橙子","脐橙",20]
[null,null,"香蕉","美人指",60]
[null,null,"柠檬","尤力克",40]
[null,null,"苹果","蜜脆",50]
[null,null,"橙子","脐橙",20]
[null,null,"香蕉","卡文迪什",60]
[null,null,"柠檬","尤力克",40]
[]
[null,null,"水果","类型","试一试"]
[null,null,"柠檬","尤力克",{"$f":"AVERAGEIFS(E92:E103,C92:C103,C106,D92:D103,D106)","v":40}]
{"$rows_empty":10}
[null,null,"项目​​","数量"]
[null,null,"面包",50]
[null,null,"甜甜圈",100]
[null,null,"曲奇饼",40]
[null,null,"蛋糕",50]
[null,null,"馅饼",20]
[{"$nulls":3},{"$f":"SUMIF(D118:D122,\">=50\")","v":200}]

{"sheet":"函数向导","index":10,"n_rows":14,"n_cols":4,"rows_kept":14}
["让函数向导指导你"]
["如果知道所需函数的名称，但不确定如何构建它，可以使用函数向导帮你解决。\n"]
["选择单元格 D10，然后转至“公式”>“插入函数”>在“搜索”函数框中键入 VLOOKUP，然后按“转到”。看到 VLOOKUP 突出显示时，在底部单击“确定”。选择列表中的函数时，Excel 将显示其语法。\n"]
["接下来，在其各自的文本框中输入函数参数。每输入一个参数，Excel 都会对其求值，并显示其结果，最终结果显示在底部。输入每个部分时，窗体底部将列出每个参数的条件。完成后请按“确定”，Excel 将为你输入公式。\n\n\n",null,"水果","数量"]
["看看这个\n最终应为 =VLOOKUP(C10,C5:D8,2,FALSE)。",null,"苹果",50]
["扩展知识\n可键入单元格和区域引用，或使用鼠标进行选择。",null,"橙子",20]
["扩展知识\n输入每个参数部分时，公式结果上方的窗体底部将显示参数说明。\n",null,"香蕉",60]
["上一个工作表",null,"柠檬",40]
["下一个工作表"]
["访问网页获取详细信息",null,"苹果",{"$f":"VLOOKUP(C10,C5:D8,2,FALSE)","v":50}]
["Excel 中的公式概述"]
["Excel 函数（按类别划分）"]
["Excel 函数（按字母顺序排列）"]
["免费 Excel 在线培训"]

{"sheet":"公式错误","index":11,"n_rows":36,"n_cols":4,"rows_kept":36}
["修复公式错误"]
["有时，你会遇到含有错误的公式，Excel 显示为 #ErrorName。错误很有用，因为它们可指出某些内容未正确运行，但进行修复并非易事。所幸，有通过多种方式可帮助你查找错误来源，并进行修复。\n"]
["错误检查 - 转到“公式”>“错误检查”。这将加载一个对话框，告知你特定错误的一般原因。在单元格 D9 中，引发 #N/A 错误的原因是没有匹配“苹果”的值。你可以修复此错误，方法是使用存在的值，通过 IFERROR 抑制错误，或知道在使用确实存在的值时错误会消失的情况下忽略它。\n",null,"水果","数量"]
["如果单击此错误上的“帮助”，将打开特定于此错误消息的帮助主题。如果单击“显示计算步骤”，将加载“公式求值”对话框。\n",null,"苹果",50]
["每次单击“求值”，Excel 都将逐步执行公式，一次一个部分。它不一定会告诉你出现错误的原因，但会指出位置。在这里，查看帮助主题，推导公式出问题的位置。\n",null,"橙子",20]
["实验\n这里有什么错误？提示：我们正在尝试对所有项目求和。",null,"香蕉",60]
["扩展知识\n单击“选项”，可设置 Excel 中显示或忽略错误的规则。\n",null,"柠檬",40]
["上一个工作表"]
["下一个工作表",null,"苹 果",{"$f":"VLOOKUP(C9,C3:D7,2,FALSE)","v":{"$error":"#N/A"}}]
["访问网页获取详细信息"]
["检查公式中的错误"]
["如何避免公式被破坏"]
["逐步求值嵌套公式"]
["免费 Excel 在线培训"]
{"$rows_empty":15}
[null,null,"水果","数量"]
[null,null,"苹果",50]
[null,null,"橙子",20]
[null,null,"香蕉",60]
[null,null,"柠檬",40]
[]
[null,null,"总计",{"$f":"sume(D31:D34)","v":{"$error":"#NAME?"}}]

{"sheet":"了解详细信息","index":12,"n_rows":5,"n_cols":1,"rows_kept":5}
["还有其他 Excel 问题？"]
["按 Alt + Q，并键入想要了解的内容。"]
["请继续观看。下面是关于 Excel 的更多内容："]
["社区：提问并与其他 Excel 爱好者联系。\n"]
["其他新增功能？\nOffice 365 订阅者将获得持续的更新和新功能。\n\n"]